fUST/lending_fUST_20240619
["ID","MTS","AMOUNT","RATE_DAILY","PERIOD"]
[329834733,1718729440978,-500.0,0.00017666,2]
[329834734,1718729440988,-182.106432,0.00017666,2]
[329834735,1718729441001,-500.0,0.00017666,2]
[329834736,1718729441013,-151.0,0.00017666,2]
[329834737,1718729441023,-531.68564142,0.00017666,2]
[329834738,1718729441032,-152.136411,0.00017666,2]
[329834739,1718729441043,-500.0,0.00017666,2]
[329834740,1718729441052,-292.371505,0.00017666,2]
[329834741,1718729441062,-292.371505,0.00017666,2]
[329834742,1718729441072,-500.0,0.00017666,2]
[329834743,1718729441081,-155.15471212,0.00017667,2]
[329834744,1718729441091,-2812.13279208,0.00017667,2]
[329834745,1718729441100,-1332.22184153,0.00017667,2]
[329834746,1718729441109,-34738.77812561,0.00017667,2]
[329834747,1718729441119,-1280.43766712,0.00017667,2]
[329834748,1718729441129,-165.60988083,0.00017667,2]
[329834749,1718729441138,-155.01550155,0.00017667,2]
[329834750,1718729441147,-198.361308,0.00017667,2]
[329834751,1718729441156,-198.361308,0.00017667,2]
[329834752,1718729441165,-151.0,0.00017667,2]
[329834753,1718729441175,-151.0,0.00017667,2]
[329834754,1718729441184,-155.0924,0.00017667,2]
[329834755,1718729441194,-151.0,0.00017667,2]
[329834756,1718729441203,-151.0,0.00017667,2]
[329834757,1718729441212,-151.0,0.00017667,2]
[329834758,1718729441222,-151.0,0.00017667,2]
[329834759,1718729441231,-161.154819,0.00017667,2]
[329834760,1718729441241,-151.0,0.00017667,2]
[329834761,1718729441254,-151.0,0.00017667,2]
[329834762,1718729441265,-151.0,0.00017667,2]
[329834763,1718729441277,-151.0,0.00017667,2]
[329834764,1718729441286,-151.0,0.00017667,2]
[329834765,1718729441296,-151.0,0.00017667,2]
[329834766,1718729441306,-151.0,0.00017667,2]
[329834767,1718729441316,-151.0,0.00017667,2]
[329834768,1718729441325,-151.0,0.00017667,2]
[329834769,1718729441334,-151.0,0.00017667,2]
[329834770,1718729441343,-544.473507,0.00017667,2]
[329834771,1718729441352,-544.473507,0.00017667,2]
[329834772,1718729441362,-544.473507,0.00017667,2]
[329834773,1718729441371,-544.473507,0.00017667,2]
[329834774,1718729441380,-231.812815,0.00017667,2]
[329834775,1718729441390,-231.812815,0.00017667,2]
[329834776,1718729441399,-231.812815,0.00017667,2]
[329834777,1718729441408,-231.812815,0.00017667,2]
[329834778,1718729441418,-231.812815,0.00017667,2]
[329834779,1718729441427,-231.812815,0.00017667,2]
[329834780,1718729441436,-500.0,0.00017667,2]
[329834781,1718729441446,-881.784166,0.00017667,2]
[329834782,1718729441455,-881.784166,0.00017667,2]
[329834783,1718729441464,-881.784166,0.00017667,2]
[329834784,1718729441474,-881.784166,0.00017667,2]
[329834785,1718729441484,-881.784166,0.00017667,2]
[329834786,1718729441493,-881.784166,0.00017667,2]
[329834787,1718729441505,-585.836596,0.00017667,2]
[329834788,1718729441515,-585.836596,0.00017667,2]
[329834789,1718729441525,-585.836596,0.00017667,2]
[329834790,1718729441534,-585.836596,0.00017667,2]
[329834791,1718729441544,-585.836596,0.00017667,2]
[329834792,1718729441553,-585.836596,0.00017667,2]
[329834793,1718729441562,-2682.661792,0.00017667,2]
[329834794,1718729441572,-2682.661792,0.00017667,2]
[329834795,1718729441582,-2682.661792,0.00017667,2]
[329834796,1718729441591,-151.0,0.00017667,2]
[329834797,1718729441601,-151.0,0.00017667,2]
[329834798,1718729441610,-151.0,0.00017667,2]
[329834799,1718729441620,-2682.661792,0.00017667,2]
[329834800,1718729441629,-2682.661792,0.00017667,2]
[329834801,1718729441639,-2682.661792,0.00017667,2]
[329834802,1718729441649,-292.371505,0.00017667,2]
[329834803,1718729441659,-167.80308,0.00017668,2]
[329834804,1718729441670,-167.80308,0.00017668,2]
[329834805,1718729441679,-6238.89,0.00017668,2]
[329834806,1718729441689,-151.0,0.00017669,2]
[329834807,1718729441698,-151.0,0.00017669,2]
[329834808,1718729441718,-151.0,0.00017669,2]
[329834809,1718729441729,-151.0,0.00017669,2]
[329834810,1718729441739,-167.80308,0.00017669,2]
[329834811,1718729441754,-167.80308,0.00017669,2]
[329834812,1718729441768,-167.80308,0.00017669,2]
[329834813,1718729441778,-167.80308,0.00017669,2]
[329834814,1718729441788,-151.0,0.00017669,2]
[329834815,1718729441799,-151.0,0.00017669,2]
[329834816,1718729441808,-151.0,0.00017669,2]
[329834817,1718729441819,-151.0,0.00017669,2]
[329834818,1718729441828,-218.85318,0.00017669,2]
[329834819,1718729441838,-218.85318,0.00017669,2]
[329834820,1718729441848,-218.85318,0.00017669,2]
[329834821,1718729441858,-218.85318,0.00017669,2]
[329834822,1718729441868,-198.361308,0.00017669,2]
[329834823,1718729441878,-198.361308,0.00017669,2]
[329834824,1718729441888,-198.361308,0.00017669,2]
[329834825,1718729441898,-198.361308,0.00017669,2]
[329834826,1718729441908,-151.0,0.00017669,2]
[329834827,1718729441920,-151.0,0.00017669,2]
[329834828,1718729441931,-151.0,0.00017669,2]
[329834829,1718729441943,-151.0,0.00017669,2]
[329834830,1718729441952,-151.0,0.00017669,2]
[329834831,1718729441963,-151.0,0.00017669,2]
[329834832,1718729441972,-151.0,0.00017669,2]
[329834833,1718729441982,-151.0,0.00017669,2]
[329834834,1718729441991,-151.0,0.00017669,2]
[329834835,1718729442005,-151.0,0.00017669,2]
[329834836,1718729442017,-151.0,0.00017669,2]
[329834837,1718729442027,-151.0,0.00017669,2]
[329834838,1718729442037,-151.0,0.00017669,2]
[329834839,1718729442047,-151.0,0.00017669,2]
[329834840,1718729442057,-151.0,0.00017669,2]
[329834841,1718729442067,-151.0,0.00017669,2]
[329834842,1718729442077,-151.0,0.00017669,2]
[329834843,1718729442086,-151.0,0.00017669,2]
[329834844,1718729442096,-151.0,0.00017669,2]
[329834845,1718729442106,-151.0,0.00017669,2]
[329834846,1718729442117,-544.473507,0.00017669,2]
[329834847,1718729442127,-544.473507,0.00017669,2]
[329834848,1718729442137,-544.473507,0.00017669,2]
[329834849,1718729442147,-544.473507,0.00017669,2]
[329834850,1718729442157,-231.812815,0.00017669,2]
[329834851,1718729442167,-231.812815,0.00017669,2]
[329834852,1718729442176,-231.812815,0.00017669,2]
[329834853,1718729442186,-231.812815,0.00017669,2]
[329834854,1718729442195,-231.812815,0.00017669,2]
[329834855,1718729442205,-231.812815,0.00017669,2]
[329834856,1718729442214,-881.784166,0.00017669,2]
[329834857,1718729442224,-881.784166,0.00017669,2]
[329834858,1718729442234,-881.784166,0.00017669,2]
[329834859,1718729442244,-881.784166,0.00017669,2]
[329834860,1718729442258,-881.784166,0.00017669,2]
[329834861,1718729442267,-881.784166,0.00017669,2]
[329834862,1718729442276,-585.836596,0.00017669,2]
[329834863,1718729442286,-585.836596,0.00017669,2]
[329834864,1718729442296,-585.836596,0.00017669,2]
[329834865,1718729442306,-585.836596,0.00017669,2]
[329834866,1718729442316,-585.836596,0.00017669,2]
[329834867,1718729442326,-585.836596,0.00017669,2]
[329834868,1718729442335,-2682.661792,0.00017669,2]
[329834869,1718729442345,-2682.661792,0.00017669,2]
[329834870,1718729442355,-151.0,0.00017669,2]
[329834871,1718729442364,-151.0,0.00017669,2]
[329834872,1718729442374,-2682.661792,0.00017669,2]
[329834873,1718729442383,-2682.66179657,0.00017669,2]
[329834874,1718729442393,-1320.98,0.00017758,2]
[329834875,1718729442402,-298.63,0.00017808,2]
[329834876,1718729442411,-569.3,0.00017808,2]
[329834877,1718729442421,-500.0,0.00017808,2]
[329834878,1718729442430,-226.28898487,0.00017839,2]
[329834879,1718729442440,-1598.55085424,0.0001794,15]
[329834880,1718729442449,-1715.91,0.0001794,2]
[329834881,1718729442459,-562.67,0.0001794,2]
[329834882,1718729442468,-151.0,0.0001794,2]
[329834883,1718729442477,-544.473507,0.0001794,2]
[329834884,1718729442487,-527.97,0.0001794,2]
[329834885,1718729442496,-544.473507,0.0001794,2]
[329834886,1718729442511,-456.11207285,0.0001794,2]
[329834887,1718729442521,-500.0,0.0001794,2]
[329834888,1718729442530,-500.0,0.0001794,2]
[329834889,1718729442539,-728.25,0.0001794,2]
[329834890,1718729442549,-587.65,0.0001794,2]
[329834891,1718729442558,-231.812815,0.0001794,2]
[329834892,1718729442568,-231.812822,0.0001794,2]
[329834893,1718729442580,-500.0,0.0001794,2]
[329834894,1718729442590,-500.0,0.0001794,2]
[329834895,1718729442599,-500.0,0.0001794,2]
[329834896,1718729442609,-500.0,0.0001794,2]
[329834897,1718729442618,-500.0,0.0001794,2]
[329834898,1718729442627,-300.78578255,0.0001794,2]
[329834899,1718729442637,-500.0,0.0001794,2]
[329834900,1718729442646,-881.784166,0.0001794,2]
[329834901,1718729442656,-881.784167,0.0001794,2]
[329834902,1718729442665,-500.0,0.0001794,2]
[329834903,1718729442675,-585.836596,0.0001794,2]
[329834904,1718729442684,-781.8,0.0001794,2]
[329834905,1718729442693,-585.836593,0.0001794,2]
[329834906,1718729442703,-500.0,0.0001794,2]
[329834907,1718729442713,-500.0,0.0001794,2]
[329834908,1718729442722,-1173.43,0.0001794,2]
[329834909,1718729442731,-569.7004604,0.0001794,2]
[329834910,1718729442741,-500.0,0.0001794,2]
[329834911,1718729442755,-540.24,0.0001794,2]
[329834912,1718729442765,-500.0,0.0001794,2]
[329834913,1718729442774,-500.0,0.0001794,2]
[329834914,1718729442784,-1320.98,0.00018032,2]
[329834915,1718729442793,-569.3,0.00018082,2]
[329834916,1718729442803,-500.0,0.00018082,2]
[329834917,1718729442813,-226.28898487,0.00018114,2]
[329834918,1718729442822,-198.361308,0.00018214,2]
[329834919,1718729442832,-198.361308,0.00018214,2]
[329834920,1718729442842,-154.236462,0.00018214,2]
[329834921,1718729442852,-151.0,0.00018214,2]
[329834922,1718729442861,-151.0,0.00018214,2]
[329834923,1718729442871,-151.0,0.00018214,2]
[329834924,1718729442880,-151.0,0.00018214,2]
[329834925,1718729442890,-151.0,0.00018214,2]
[329834926,1718729442899,-151.0,0.00018214,2]
[329834927,1718729442909,-1715.91,0.00018214,2]
[329834929,1718729442923,-151.0,0.00018214,2]
[329834931,1718729442932,-248.23675,0.00018214,2]
[329834934,1718729442942,-151.0,0.00018214,2]
[329834936,1718729442952,-151.0,0.00018214,2]
[329834939,1718729442962,-544.473507,0.00018214,2]
[329834940,1718729442972,-544.473507,0.00018214,2]
[329834943,1718729442982,-544.473507,0.00018214,2]
[329834944,1718729442991,-544.473507,0.00018214,2]
[329834947,1718729443004,-500.0,0.00018214,2]
[329834949,1718729443013,-637.07,0.00018214,2]
[329834950,1718729443024,-728.25,0.00018214,2]
[329834954,1718729443034,-587.65,0.00018214,2]
[329834957,1718729443043,-500.0,0.00018214,2]
[329834960,1718729443053,-500.0,0.00018214,2]
[329834961,1718729443063,-500.0,0.00018214,2]
[329834963,1718729443072,-500.0,0.00018214,2]
[329834965,1718729443082,-500.0,0.00018214,2]
[329834967,1718729443092,-500.0,0.00018214,2]
[329834970,1718729443101,-464.00337964,0.00018214,2]
[329834973,1718729443111,-781.8,0.00018214,2]
[329834974,1718729443120,-500.0,0.00018214,2]
[329834975,1718729443130,-1173.43,0.00018214,2]
[329834976,1718729443139,-290.45,0.00018214,2]
[329834977,1718729443149,-500.0,0.00018214,2]
[329834979,1718729443158,-150.58,0.00018214,2]
[329834981,1718729443167,-1320.98,0.00018306,2]
[329834983,1718729443177,-151.0,0.00018327,2]
[329834985,1718729443186,-544.473507,0.00018327,2]
[329834987,1718729443196,-544.473507,0.00018327,2]
[329834989,1718729443205,-250.0,0.00018327,2]
[329834991,1718729443215,-15894.4417254,0.00018327,2]
[329834993,1718729443225,-569.3,0.00018356,2]
[329834995,1718729443234,-226.28898487,0.00018388,2]
[329834996,1718729443244,-6238.89,0.00018487,2]
[329834997,1718729443256,-151.0,0.00018488,2]
[329834999,1718729443266,-151.0,0.00018488,2]
[329835001,1718729443277,-1715.91,0.00018488,2]
[329835002,1718729443286,-151.0,0.00018488,2]
[329835003,1718729443295,-544.473507,0.00018488,2]
[329835004,1718729443305,-544.473507,0.00018488,2]
[329835005,1718729443314,-500.0,0.00018488,2]
[329835006,1718729443323,-728.25,0.00018488,2]
[329835007,1718729443333,-587.65,0.00018488,2]
[329835008,1718729443342,-500.0,0.00018488,2]
[329835009,1718729443351,-500.0,0.00018488,2]
[329835010,1718729443361,-500.0,0.00018488,2]
[329835011,1718729443371,-500.0,0.00018488,2]
[329835012,1718729443380,-500.0,0.00018488,2]
[329835014,1718729443390,-500.0,0.00018488,2]
[329835015,1718729443399,-1173.43,0.00018488,2]
[329835016,1718729443408,-500.0,0.00018488,2]
[329835017,1718729443418,-198.361308,0.00018535,2]
[329835018,1718729443428,-198.361308,0.00018535,2]
[329835019,1718729443438,-151.0,0.00018535,2]
[329835020,1718729443447,-151.0,0.00018535,2]
[329835021,1718729443456,-151.0,0.00018535,2]
[329835022,1718729443466,-298.121321,0.00018535,2]
[329835023,1718729443476,-1001.6375665,0.00018539,2]
[329835024,1718729443486,-1320.98,0.0001858,2]
[329835025,1718729443495,-569.3,0.0001863,2]
[329835026,1718729443509,-226.28898487,0.00018662,2]
[329835027,1718729443519,-944.91676478,0.00018666,2]
[329835029,1718729443528,-544.473507,0.00018667,2]
[329835030,1718729443538,-544.473511,0.00018667,2]
[329835032,1718729443547,-500.0,0.00018667,2]
[329835034,1718729443557,-6238.89,0.00018667,2]
[329835035,1718729443566,-281.78483728,0.00018667,2]
[329835036,1718729443696,-151.0,0.00018668,2]
[329835037,1718729443706,-151.0,0.00018668,2]
[329835038,1718729443716,-151.0,0.00018668,2]
[329835039,1718729443726,-151.0,0.00018668,2]
[329835040,1718729443736,-151.0,0.00018668,2]
[329835041,1718729443746,-151.0,0.00018668,2]
[329835042,1718729443759,-167.80308,0.00018668,2]
[329835043,1718729443769,-167.80308,0.00018668,2]
[329835044,1718729443779,-167.80308,0.00018668,2]
[329835045,1718729443788,-167.80308,0.00018668,2]
[329835046,1718729443798,-205.494387,0.00018668,2]
[329835047,1718729443808,-218.85318,0.00018668,2]
[329835048,1718729443818,-218.85318,0.00018668,2]
[329835049,1718729443829,-218.85318,0.00018668,2]
[329835050,1718729443839,-218.85318,0.00018668,2]
[329835051,1718729443848,-218.85318,0.00018668,2]
[329835054,1718729443857,-218.85318,0.00018668,2]
[329835056,1718729443868,-218.85318,0.00018668,2]
[329835059,1718729443877,-218.85318,0.00018668,2]
[329835062,1718729443886,-198.361308,0.00018668,2]
[329835063,1718729443895,-198.361308,0.00018668,2]
[329835065,1718729443906,-198.361308,0.00018668,2]
[329835066,1718729443917,-198.361308,0.00018668,2]
[329835067,1718729443926,-198.361308,0.00018668,2]
[329835068,1718729443939,-198.361308,0.00018668,2]
[329835069,1718729443949,-151.0,0.00018668,2]
[329835070,1718729443959,-151.0,0.00018668,2]
[329835071,1718729443968,-151.0,0.00018668,2]
[329835072,1718729443978,-183.910664,0.00018668,2]
[329835073,1718729443988,-151.0,0.00018668,2]
[329835074,1718729443998,-151.0,0.00018668,2]
[329835075,1718729444014,-151.0,0.00018668,2]
[329835076,1718729444025,-151.0,0.00018668,2]
[329835077,1718729444036,-151.0,0.00018668,2]
[329835078,1718729444046,-151.0,0.00018668,2]
[329835079,1718729444056,-151.0,0.00018668,2]
[329835080,1718729444068,-151.0,0.00018668,2]
[329835081,1718729444078,-219.329538,0.00018668,2]
[329835082,1718729444089,-151.0,0.00018668,2]
[329835083,1718729444099,-151.0,0.00018668,2]
[329835084,1718729444109,-151.0,0.00018668,2]
[329835085,1718729444120,-151.0,0.00018668,2]
[329835086,1718729444130,-215.95975088,0.00018668,2]
[329835087,1718729444139,-8042.06502403,0.00018668,2]
[329835088,1718729444160,-499.88,0.00018668,2]
[329835089,1718729444321,-207.350934,0.00017534,2]
[329835090,1718729444331,-292.371505,0.00017667,2]
[329835091,1718729444340,-292.371505,0.00017667,2]
[329835092,1718729444349,-292.371505,0.00017667,2]
[329835093,1718729444359,-292.371505,0.00017669,2]
[329835094,1718729444368,-292.371505,0.00017669,2]
[329835095,1718729444378,-500.0,0.0001794,2]
[329835096,1718729444387,-507.27,0.00018214,2]
[329835097,1718729444397,-2652.07349575,0.00018668,2]
[329835098,1718729444409,-6569.75197012,0.00018668,2]
[329835099,1718729444418,-551.39540687,0.00018669,2]
[329835100,1718729444428,-1294.52780377,0.00018669,2]
[329835101,1718729444438,-720.74038188,0.00018669,2]
[329835102,1718729444449,-310.25118809,0.00018669,2]
[329835103,1718729444459,-691.28568206,0.00018669,2]
[329835104,1718729444469,-153.9779854,0.00018678,2]
[329835105,1718729444479,-1715.91,0.00018762,2]
[329835106,1718729444489,-728.25,0.00018762,2]
[329835107,1718729444498,-587.65,0.00018762,2]
[329835108,1718729444508,-500.0,0.00018762,2]
[329835109,1718729444518,-500.0,0.00018762,2]
[329835110,1718729444527,-213.05452005,0.00018762,2]
[329835111,1718729444537,-500.0,0.00018762,2]
[329835112,1718729444546,-1173.43,0.00018762,2]
[329835113,1718729444556,-500.0,0.00018762,2]
[329835114,1718729444565,-388.0,0.00018845,2]
[329835115,1718729444574,-1320.98,0.00018854,2]
[329835116,1718729444583,-206.88493669,0.000189,2]
[329835117,1718729444593,-569.3,0.00018904,2]
[329835118,1718729444603,-153.0,0.00018941,2]
[329835119,1718729444614,-420.0,0.00018984,2]
[329835120,1718729444623,-1499.999999,0.00019,2]
[329835121,1718729444634,-1000.0,0.00019,19]
[329835122,1718729444644,-1001.62197092,0.00019,2]
[329835123,1718729444654,-198.361308,0.00019,2]
[329835124,1718729444663,-198.361308,0.00019,2]
[329835125,1718729444673,-151.0,0.00019,2]
[329835126,1718729444683,-151.0,0.00019,2]
[329835127,1718729444693,-87549.14225119,0.00019,2]
[329835128,1718729444703,-218.85318,0.00019036,2]
[329835129,1718729444713,-218.85318,0.00019036,2]
[329835130,1718729444722,-1715.91,0.00019036,2]
[329835131,1718729444732,-728.25,0.00019036,2]
[329835132,1718729444742,-587.65,0.00019036,2]
[329835133,1718729444751,-500.0,0.00019036,2]
[329835134,1718729444769,-500.0,0.00019036,2]
[329835135,1718729444779,-500.0,0.00019036,2]
[329835136,1718729444789,-1173.43,0.00019036,2]
[329835137,1718729444801,-500.0,0.00019036,2]
[329835138,1718729444810,-6238.89,0.0001909,2]
[329835139,1718729444820,-14728.8173323,0.00019091,2]
[329835140,1718729444830,-218.85318,0.00019091,2]
[329835141,1718729444840,-218.85318,0.00019091,2]
[329835142,1718729444850,-198.361308,0.00019091,2]
[329835143,1718729444859,-198.361299,0.00019091,2]
[329835144,1718729444869,-151.0,0.00019091,2]
[329835145,1718729444879,-151.0,0.00019091,2]
[329835146,1718729444888,-391.183066,0.00019096,2]
[329835147,1718729444898,-604.1847584,0.00019096,2]
[329835148,1718729444908,-276.6514117,0.00019096,2]
[329835149,1718729444921,-287.200125,0.00019096,2]
[329835150,1718729444931,-463.8105469,0.00019096,2]
[329835151,1718729444941,-1320.98,0.00019128,2]
[329835152,1718729444950,-569.3,0.00019178,2]
[329835153,1718729444962,-165.333688,0.00019178,2]
[329835154,1718729444972,-160.395589,0.00019178,2]
[329835155,1718729444981,-153.0,0.0001926,2]
[329835156,1718729444990,-307.5621653,0.0001926,2]
[329835157,1718729444999,-1201.55642379,0.0001931,2]
[329835158,1718729445020,-514.35357621,0.0001931,2]
[329835159,1718729445030,-728.25,0.0001931,2]
[329835160,1718729445040,-587.65,0.0001931,2]
[329835161,1718729445049,-500.0,0.0001931,2]
[329835162,1718729445059,-500.0,0.0001931,2]
[329835163,1718729445068,-1173.43,0.0001931,2]
[329835164,1718729445078,-500.0,0.0001931,2]
[329835165,1718729445087,-153.0,0.00019332,2]
[329835166,1718729445098,-153.0,0.00019332,2]
[329835167,1718729445108,-153.0,0.00019332,2]
[329835168,1718729445118,-292.8069666,0.00019342,2]
[329835169,1718729445127,-306.0,0.00019342,2]
[329835170,1718729445137,-205.5620548,0.00019342,2]
[329835171,1718729445147,-306.7233309,0.00019342,2]
[329835172,1718729445156,-292.8069666,0.00019342,2]
[329835173,1718729445166,-292.8069666,0.00019342,2]
[329835174,1718729445175,-2000.0,0.00019394,2]
[329835175,1718729445184,-1320.98,0.00019402,2]
[329835176,1718729445194,-160.0,0.00019441,2]
[329835177,1718729445203,-569.3,0.00019452,2]
[329835178,1718729445212,-6238.89,0.00019493,2]
[329835179,1718729445222,-6238.89,0.00019493,2]
[329835180,1718729445231,-393.86398248,0.00019494,2]
[329835181,1718729445240,-500.0,0.00019494,2]
[329835182,1718729445250,-500.0,0.00019494,2]
[329835183,1718729445264,-500.0,0.00019494,2]
[329835184,1718729445274,-500.0,0.00019494,2]
[329835185,1718729445284,-500.0,0.00019494,2]
[329835186,1718729445293,-500.0,0.00019494,2]
[329835187,1718729445303,-500.0,0.00019494,2]
[329835188,1718729445312,-500.0,0.00019494,2]
[329835189,1718729445322,-500.0,0.00019494,2]
[329835190,1718729445332,-500.0,0.00019494,2]
[329835191,1718729445343,-500.0,0.00019494,2]
[329835192,1718729445353,-500.0,0.00019494,2]
[329835193,1718729445363,-548.10822406,0.00019494,2]
[329835194,1718729445373,-151.0,0.00019494,2]
[329835195,1718729445382,-151.0,0.00019494,2]
[329835196,1718729445392,-500.0,0.00019494,2]
[329835197,1718729445402,-501.75361061,0.00019494,2]
[329835198,1718729445412,-500.0,0.00019494,2]
[329835199,1718729445421,-500.0,0.00019494,2]
[329835200,1718729445431,-500.0,0.00019494,2]
[329835201,1718729445440,-500.0,0.00019494,2]
[329835202,1718729445450,-500.0,0.00019494,2]
[329835203,1718729445459,-500.0,0.00019494,2]
[329835204,1718729445468,-500.0,0.00019494,2]
[329835205,1718729445478,-500.0,0.00019494,2]
[329835206,1718729445487,-520.50471587,0.00019494,2]
[329835207,1718729445496,-504.12408973,0.00019494,2]
[329835208,1718729445510,-500.0,0.00019494,2]
[329835209,1718729445519,-500.0,0.00019494,2]
[329835210,1718729445528,-500.0,0.00019494,2]
[329835211,1718729445538,-167.80308,0.00019494,2]
[329835212,1718729445547,-167.80308,0.00019494,2]
[329835213,1718729445556,-398.1444164,0.00019494,2]
[329835214,1718729445566,-513.26649873,0.00019494,2]
[329835215,1718729445575,-500.0,0.00019494,2]
[329835216,1718729445585,-500.0,0.00019494,2]
[329835217,1718729445595,-500.0,0.00019494,2]
[329835218,1718729445604,-500.0,0.00019494,2]
[329835219,1718729445614,-500.0,0.00019494,2]
[329835220,1718729445623,-502.41089697,0.00019494,2]
[329835221,1718729445633,-218.85318,0.00019494,2]
[329835222,1718729445643,-218.85318,0.00019494,2]
[329835223,1718729445652,-501.88713346,0.00019494,2]
[329835224,1718729445661,-218.85318,0.00019494,2]
[329835225,1718729445670,-218.853183,0.00019494,2]
[329835226,1718729445679,-517.21547026,0.00019494,2]
[329835227,1718729445688,-500.0,0.00019494,2]
[329835228,1718729445698,-500.0,0.00019494,2]
[329835229,1718729445708,-501.74309777,0.00019494,2]
[329835230,1718729445717,-500.0,0.00019494,2]
[329835231,1718729445727,-504.53878347,0.00019494,2]
[329835232,1718729445736,-497.58485344,0.00019494,2]
[329835233,1718729445745,-500.0,0.00019494,2]
[329835234,1718729445757,-504.12645499,0.00019494,2]
[329835235,1718729445767,-501.89316035,0.00019494,2]
[329835236,1718729445776,-502.03283711,0.00019494,2]
[329835237,1718729445786,-500.0,0.00019494,2]
[329835238,1718729445796,-500.0,0.00019494,2]
[329835239,1718729445806,-500.0,0.00019494,2]
[329835240,1718729445815,-500.0,0.00019494,2]
[329835241,1718729445825,-507.40638923,0.00019494,2]
[329835242,1718729445834,-500.0,0.00019494,2]
[329835243,1718729445844,-187.94836544,0.00019494,2]
[329835244,1718729445854,-500.0,0.00019494,2]
[329835245,1718729445864,-500.0,0.00019494,2]
[329835246,1718729445874,-502.10881892,0.00019494,2]
[329835247,1718729445883,-503.25995698,0.00019494,2]
[329835248,1718729445892,-500.0,0.00019494,2]
[329835249,1718729445902,-500.0,0.00019494,2]
[329835250,1718729445912,-167.96240653,0.00019494,2]
[329835251,1718729445928,-500.0,0.00019494,2]
[329835252,1718729445937,-193.77827184,0.00019494,2]
[329835253,1718729445947,-500.0,0.00019494,2]
[329835254,1718729445956,-501.62151748,0.00019494,2]
[329835255,1718729445966,-500.0,0.00019494,2]
[329835256,1718729445976,-500.0,0.00019494,2]
[329835257,1718729445986,-500.0,0.00019494,2]
[329835258,1718729445995,-500.0,0.00019494,2]
[329835259,1718729446012,-500.0,0.00019494,2]
[329835260,1718729446021,-500.0,0.00019494,2]
[329835261,1718729446030,-500.0,0.00019494,2]
[329835262,1718729446040,-500.0,0.00019494,2]
[329835263,1718729446049,-500.0,0.00019494,2]
[329835264,1718729446059,-500.0,0.00019494,2]
[329835265,1718729446069,-500.0,0.00019494,2]
[329835266,1718729446078,-500.0,0.00019494,2]
[329835267,1718729446088,-500.0,0.00019494,2]
[329835268,1718729446097,-500.0,0.00019494,2]
[329835269,1718729446107,-500.0,0.00019494,2]
[329835270,1718729446116,-502.56346164,0.00019494,2]
[329835271,1718729446125,-500.0,0.00019494,2]
[329835272,1718729446134,-500.0,0.00019494,2]
[329835273,1718729446144,-500.0,0.00019494,2]
[329835274,1718729446153,-501.51373819,0.00019494,2]
[329835275,1718729446163,-500.0,0.00019494,2]
[329835276,1718729446172,-116.76250983,0.00019494,2]
[329835285,1718729446712,-337.34525216,0.00019494,2]
[329835286,1718729446863,-292.371505,0.00017666,2]
[329835287,1718729446873,-292.371505,0.00017666,2]
[329835288,1718729446882,-54.56041175,0.00017667,2]
[329835289,1718729446894,-237.81109325,0.00017667,2]